[Event "*** Titled Tuesday Blitz"]
[Site "Chess.com"]
[Date "2021.03.16"]
[Round "4"]
[White "1977Ivan"]
[Black "SchmakAttack"]
[Result "1-0"]
[WhiteElo "2824"]
[BlackElo "2576"]
[TimeControl "180+1"]
[EndTime "10:38:48 PDT"]
[Termination "1977Ivan won by resignation"]

1. e4 {[%clk 0:03:00.9]} 1... e6 {[%clk 0:02:59.8]} 2. d4 {[%clk 0:02:59.6]}
2... d5 {[%clk 0:02:59.9]} 3. Nc3 {[%clk 0:02:58.9]} 3... Nf6 {[%clk 0:02:59.7]}
4. e5 {[%clk 0:02:53.6]} 4... Nfd7 {[%clk 0:02:59.8]} 5. Qg4 {[%clk 0:02:54.1]}
5... c5 {[%clk 0:02:45.2]} 6. Nb5 {[%clk 0:02:53.7]} 6... cxd4 {[%clk
0:02:11.7]} 7. Nf3 {[%clk 0:02:51.7]} 7... g6 {[%clk 0:02:02.3]} 8. Nbxd4 {[%clk
0:02:18.8]} 8... Nc6 {[%clk 0:01:55.3]} 9. Bb5 {[%clk 0:02:11.3]} 9... Nxd4
{[%clk 0:01:35.1]} 10. Nxd4 {[%clk 0:02:09.6]} 10... a6 {[%clk 0:01:31.1]} 11.
Bxd7+ {[%clk 0:02:08.5]} 11... Bxd7 {[%clk 0:01:32]} 12. O-O {[%clk 0:02:08.5]}
12... Rc8 {[%clk 0:01:11.6]} 13. Bg5 {[%clk 0:02:00.6]} 13... Be7 {[%clk
0:01:11.8]} 14. Bxe7 {[%clk 0:01:52.6]} 14... Qxe7 {[%clk 0:01:12.7]} 15. c3
{[%clk 0:01:48.8]} 15... b5 {[%clk 0:01:07.4]} 16. a3 {[%clk 0:01:47.9]} 16...
O-O {[%clk 0:01:02.4]} 17. h4 {[%clk 0:01:47.8]} 17... a5 {[%clk 0:01:00.3]} 18.
Qg5 {[%clk 0:01:42.7]} 18... f6 {[%clk 0:00:39]} 19. exf6 {[%clk 0:01:41.7]}
19... Qxf6 {[%clk 0:00:39.9]} 20. Rae1 {[%clk 0:01:31.8]} 20... Qxg5 {[%clk
0:00:25.6]} 21. hxg5 {[%clk 0:01:30.5]} 21... Rfe8 {[%clk 0:00:26.3]} 22. Re5
{[%clk 0:01:25.8]} 22... b4 {[%clk 0:00:20.3]} 23. axb4 {[%clk 0:01:23]} 23...
axb4 {[%clk 0:00:21.2]} 24. Rc1 {[%clk 0:01:11.2]} 24... Rc4 {[%clk 0:00:16.2]}
25. f3 {[%clk 0:01:05.6]} 25... Rec8 {[%clk 0:00:14.8]} 26. Nxe6 {[%clk
0:01:02.8]} 26... Bxe6 {[%clk 0:00:14.9]} 27. Rxe6 {[%clk 0:01:03]} 27... bxc3
{[%clk 0:00:14.9]} 28. bxc3 {[%clk 0:01:03.9]} 28... d4 {[%clk 0:00:13.2]} 29.
Re4 {[%clk 0:00:49]} 29... dxc3 {[%clk 0:00:13.3]} 30. Rxc4 {[%clk 0:00:49.4]}
30... Rxc4 {[%clk 0:00:14.2]} 31. Kf2 {[%clk 0:00:49.7]} 31... Kf7 {[%clk
0:00:08.9]} 32. Ke3 {[%clk 0:00:48.8]} 32... Ke6 {[%clk 0:00:09.2]} 33. Kd3
{[%clk 0:00:24.1]} 33... Rc5 {[%clk 0:00:09.5]} 34. Rxc3 {[%clk 0:00:19.9]}
34... Rxc3+ {[%clk 0:00:08]} 35. Kxc3 {[%clk 0:00:20.8]} 35... Kf5 {[%clk
0:00:08.5]} 36. Kd4 {[%clk 0:00:19.8]} 36... Kxg5 {[%clk 0:00:05.6]} 37. Ke5
{[%clk 0:00:19.6]} 37... h5 {[%clk 0:00:03.6]} 38. Ke6 {[%clk 0:00:07.7]} 38...
h4 {[%clk 0:00:02.3]} 39. Ke5 {[%clk 0:00:07.6]} 39... Kh5 {[%clk 0:00:01.8]}
40. Kf4 {[%clk 0:00:07.2]} 40... Kh6 {[%clk 0:00:01.6]} 41. Kg4 {[%clk
0:00:06.9]} 41... g5 {[%clk 0:00:02.1]} 42. f4 {[%clk 0:00:07]} 42... gxf4
{[%clk 0:00:02.4]} 43. Kxh4 {[%clk 0:00:07.4]} 43... f3 {[%clk 0:00:01.6]} 44.
gxf3 {[%clk 0:00:07.8]} 1-0

[Event "*** Titled Tuesday Blitz"]
[Site "Chess.com"]
[Date "2021.03.16"]
[Round "4"]
[White "SaqoChess_Twitch"]
[Black "CrazyMartian"]
[Result "0-1"]
[WhiteElo "2490"]
[BlackElo "2256"]
[TimeControl "180+1"]
[EndTime "10:38:54 PDT"]
[Termination "CrazyMartian won by resignation"]

1. d4 {[%clk 0:03:00.9]} 1... d5 {[%clk 0:02:26.6]} 2. e3 {[%clk 0:03:01.8]}
2... Nf6 {[%clk 0:02:24.6]} 3. Nf3 {[%clk 0:03:02.7]} 3... e6 {[%clk 0:02:22.1]}
4. Be2 {[%clk 0:03:03.6]} 4... Bd6 {[%clk 0:02:20.1]} 5. O-O {[%clk 0:03:04.5]}
5... O-O {[%clk 0:02:19.8]} 6. b3 {[%clk 0:03:05.4]} 6... b6 {[%clk 0:02:19.7]}
7. Bb2 {[%clk 0:03:06.3]} 7... Bb7 {[%clk 0:02:19.8]} 8. Ne5 {[%clk 0:03:07]}
8... c5 {[%clk 0:02:15]} 9. f4 {[%clk 0:03:07.3]} 9... Nc6 {[%clk 0:02:14.9]}
10. Nd2 {[%clk 0:03:06]} 10... Rc8 {[%clk 0:02:13.8]} 11. a3 {[%clk 0:03:05.4]}
11... Ne7 {[%clk 0:01:56.6]} 12. g4 {[%clk 0:03:02.7]} 12... Ne4 {[%clk
0:01:53.2]} 13. Nxe4 {[%clk 0:03:01.4]} 13... dxe4 {[%clk 0:01:53.1]} 14. c4
{[%clk 0:03:01.5]} 14... f6 {[%clk 0:01:36.4]} 15. Qc2 {[%clk 0:02:51]} 15...
fxe5 {[%clk 0:01:28.2]} 16. dxe5 {[%clk 0:02:51.9]} 16... Bb8 {[%clk 0:01:26.6]}
17. Rad1 {[%clk 0:02:52.8]} 17... Qe8 {[%clk 0:01:23.3]} 18. Rd2 {[%clk
0:02:50.6]} 18... Rd8 {[%clk 0:01:21.6]} 19. Rfd1 {[%clk 0:02:50.2]} 19... Rxd2
{[%clk 0:01:21.5]} 20. Qxd2 {[%clk 0:02:51.1]} 20... Bc6 {[%clk 0:01:14.2]} 21.
b4 {[%clk 0:02:49.5]} 21... Qc8 {[%clk 0:01:05.6]} 22. b5 {[%clk 0:02:49.1]}
22... Bb7 {[%clk 0:01:02.5]} 23. Qd7 {[%clk 0:02:48]} 23... Re8 {[%clk
0:00:37.7]} 24. Bf1 {[%clk 0:02:39.6]} 24... Bc7 {[%clk 0:00:31.4]} 25. Bg2
{[%clk 0:02:38.5]} 25... Kf8 {[%clk 0:00:26.6]} 26. Qxc8 {[%clk 0:02:37.4]}
26... Bxc8 {[%clk 0:00:25.7]} 27. Bxe4 {[%clk 0:02:36.8]} 27... g6 {[%clk
0:00:22.1]} 28. a4 {[%clk 0:02:37]} 28... Rd8 {[%clk 0:00:18.8]} 29. Rxd8+
{[%clk 0:02:36.5]} 29... Bxd8 {[%clk 0:00:19.3]} 30. Bc3 {[%clk 0:02:37.4]}
30... Bc7 {[%clk 0:00:19.5]} 31. Kg2 {[%clk 0:02:37.9]} 31... a6 {[%clk
0:00:18.2]} 32. Kf3 {[%clk 0:02:37.8]} 32... axb5 {[%clk 0:00:18.4]} 33. axb5
{[%clk 0:02:38.7]} 33... Bd7 {[%clk 0:00:18.3]} 34. h3 {[%clk 0:02:39.2]} 34...
Kf7 {[%clk 0:00:18.5]} 35. Bb7 {[%clk 0:02:39.1]} 35... Ke8 {[%clk 0:00:18.2]}
36. e4 {[%clk 0:02:39.4]} 36... Kf7 {[%clk 0:00:18.3]} 37. h4 {[%clk 0:02:34.7]}
37... h5 {[%clk 0:00:16.7]} 38. f5 {[%clk 0:02:31.3]} 38... hxg4+ {[%clk
0:00:16.5]} 39. Kxg4 {[%clk 0:02:31.4]} 39... exf5+ {[%clk 0:00:17.1]} 40. Kg5
{[%clk 0:02:29.1]} 40... fxe4 {[%clk 0:00:16.4]} 41. Bxe4 {[%clk 0:02:30]} 41...
Bf5 {[%clk 0:00:16.3]} 42. Bd5+ {[%clk 0:02:26.5]} 42... Be6 {[%clk 0:00:13.2]}
43. Bf3 {[%clk 0:02:16.1]} 43... Bxc4 {[%clk 0:00:12.9]} 44. h5 {[%clk
0:02:16.7]} 44... gxh5 {[%clk 0:00:12.1]} 45. Bxh5+ {[%clk 0:02:17.6]} 45... Kf8
{[%clk 0:00:11.6]} 46. Bg4 {[%clk 0:02:10.1]} 46... Bxb5 {[%clk 0:00:11.5]} 47.
e6 {[%clk 0:02:10.6]} 47... Ng8 {[%clk 0:00:06.2]} 48. Kg6 {[%clk 0:02:04.5]}
48... Bd3+ {[%clk 0:00:04.9]} 49. Kg5 {[%clk 0:02:04.6]} 49... Bd8+ {[%clk
0:00:04.9]} 50. Kf4 {[%clk 0:02:04.2]} 50... Bf6 {[%clk 0:00:04.5]} 51. Be1
{[%clk 0:02:03.5]} 51... Ke7 {[%clk 0:00:04.4]} 52. Ke3 {[%clk 0:02:03.6]} 52...
Bc4 {[%clk 0:00:04.3]} 53. Ke4 {[%clk 0:02:03.2]} 53... Bxe6 {[%clk 0:00:04.7]}
54. Bh5 {[%clk 0:02:03.7]} 54... b5 {[%clk 0:00:03.3]} 55. Ba5 {[%clk
0:02:03.9]} 55... b4 {[%clk 0:00:03.1]} 56. Bb6 {[%clk 0:02:04.4]} 56... Bd4
{[%clk 0:00:02.3]} 57. Kd3 {[%clk 0:02:03.8]} 57... Nf6 {[%clk 0:00:03.2]} 58.
Bf3 {[%clk 0:02:03.3]} 58... Kd6 {[%clk 0:00:04.1]} 59. Ba7 {[%clk 0:02:03]}
59... Bd5 {[%clk 0:00:05]} 60. Bb8+ {[%clk 0:02:02.7]} 60... Ke7 {[%clk
0:00:04.3]} 61. Bd1 {[%clk 0:02:03]} 61... Be6 {[%clk 0:00:03.8]} 62. Bc7 {[%clk
0:02:03.1]} 62... Bf5+ {[%clk 0:00:04.3]} 63. Kd2 {[%clk 0:02:03.1]} 63... Kd7
{[%clk 0:00:05.2]} 64. Bb6 {[%clk 0:02:02.9]} 64... Ne4+ {[%clk 0:00:06.1]} 65.
Kc1 {[%clk 0:02:02.6]} 65... Kc6 {[%clk 0:00:07]} 66. Ba7 {[%clk 0:02:02.6]}
66... Be3+ {[%clk 0:00:07.8]} 67. Kb2 {[%clk 0:02:02.2]} 67... Nc3 {[%clk
0:00:08.3]} 68. Bf3+ {[%clk 0:02:02.1]} 68... Kb5 {[%clk 0:00:07.7]} 69. Bb8
{[%clk 0:02:01.8]} 69... Bd4 {[%clk 0:00:08.3]} 70. Kc1 {[%clk 0:02:00.7]} 70...
Bd3 {[%clk 0:00:08.7]} 71. Bf4 {[%clk 0:01:58.9]} 71... Ne2+ {[%clk 0:00:08.3]}
72. Bxe2 {[%clk 0:01:56.2]} 72... Bxe2 {[%clk 0:00:09.2]} 73. Kd2 {[%clk
0:01:57.1]} 73... Bc4 {[%clk 0:00:09.7]} 74. Kc1 {[%clk 0:01:57.6]} 74... b3
{[%clk 0:00:10.1]} 75. Kb1 {[%clk 0:01:58.2]} 75... Kb4 {[%clk 0:00:10.7]} 76.
Kc1 {[%clk 0:01:59.1]} 76... Bd3 {[%clk 0:00:11.2]} 77. Bd2+ {[%clk 0:01:57.2]}
77... Bc3 {[%clk 0:00:11.3]} 78. Kd1 {[%clk 0:01:54.9]} 78... Bxd2 {[%clk
0:00:10.6]} 79. Kxd2 {[%clk 0:01:55.8]} 79... c4 {[%clk 0:00:11.5]} 80. Kc1
{[%clk 0:01:55.9]} 80... Ka3 {[%clk 0:00:12.1]} 81. Kd2 {[%clk 0:01:55.9]} 81...
Kb2 {[%clk 0:00:12.3]} 82. Ke3 {[%clk 0:01:56]} 82... Kc2 {[%clk 0:00:12.9]} 83.
Kd4 {[%clk 0:01:56.9]} 83... b2 {[%clk 0:00:13.8]} 84. Kc5 {[%clk 0:01:57.8]}
84... c3 {[%clk 0:00:14.3]} 85. Kd4 {[%clk 0:01:58.7]} 85... b1=Q {[%clk
0:00:15.2]} 86. Kd5 {[%clk 0:01:59.6]} 86... Qb4 {[%clk 0:00:15.4]} 87. Kc6
{[%clk 0:01:59.6]} 87... Kd2 {[%clk 0:00:16.3]} 88. Kd5 {[%clk 0:01:59.9]} 88...
Bc2 {[%clk 0:00:17.2]} 89. Ke5 {[%clk 0:02:00.8]} 89... Bd1 {[%clk 0:00:18.1]}
90. Kd5 {[%clk 0:02:01.7]} 90... c2 {[%clk 0:00:19]} 91. Ke5 {[%clk 0:02:02.6]}
91... c1=Q {[%clk 0:00:19.9]} 92. Kd5 {[%clk 0:02:03.5]} 92... Qcc5+ {[%clk
0:00:20.5]} 93. Ke6 {[%clk 0:02:03.8]} 93... Qbb6+ {[%clk 0:00:21.4]} 94. Kd7
{[%clk 0:02:04.7]} 94... Qcc7+ {[%clk 0:00:22.2]} 0-1

[Event "*** Titled Tuesday Blitz"]
[Site "Chess.com"]
[Date "2021.03.16"]
[Round "4"]
[White "rpragchess"]
[Black "NTBT_DHS"]
[Result "0-1"]
[WhiteElo "2909"]
[BlackElo "2790"]
[TimeControl "180+1"]
[EndTime "10:38:58 PDT"]
[Termination "NTBT_DHS won on time"]

1. c4 {[%clk 0:03:00.9]} 1... Nf6 {[%clk 0:02:59.8]} 2. Nc3 {[%clk 0:03:00.8]}
2... g6 {[%clk 0:02:59.8]} 3. g3 {[%clk 0:02:53.3]} 3... Bg7 {[%clk 0:02:59.8]}
4. Bg2 {[%clk 0:02:54.2]} 4... O-O {[%clk 0:03:00.3]} 5. d3 {[%clk 0:02:54.2]}
5... d6 {[%clk 0:02:58.8]} 6. Bd2 {[%clk 0:02:52]} 6... Nc6 {[%clk 0:02:56.3]}
7. Qc1 {[%clk 0:02:51.7]} 7... e6 {[%clk 0:02:48.5]} 8. Bg5 {[%clk 0:02:43.4]}
8... Nd4 {[%clk 0:02:32.7]} 9. h4 {[%clk 0:02:05.9]} 9... h6 {[%clk 0:02:23.4]}
10. Be3 {[%clk 0:02:00.2]} 10... Ng4 {[%clk 0:02:23]} 11. Bd2 {[%clk 0:01:56.9]}
11... d5 {[%clk 0:02:12.4]} 12. cxd5 {[%clk 0:01:28.6]} 12... exd5 {[%clk
0:02:11.5]} 13. Nf3 {[%clk 0:01:29.5]} 13... c6 {[%clk 0:01:55.3]} 14. O-O
{[%clk 0:01:28.8]} 14... Kh7 {[%clk 0:01:07.5]} 15. Re1 {[%clk 0:00:58.7]} 15...
Bf5 {[%clk 0:00:54.8]} 16. Bf4 {[%clk 0:00:56.6]} 16... Qb6 {[%clk 0:00:53.6]}
17. Nxd4 {[%clk 0:00:39.5]} 17... Qxd4 {[%clk 0:00:53.8]} 18. e3 {[%clk
0:00:36]} 18... Qb6 {[%clk 0:00:46]} 19. Qd2 {[%clk 0:00:35.6]} 19... d4 {[%clk
0:00:43.2]} 20. Ne4 {[%clk 0:00:28.3]} 20... dxe3 {[%clk 0:00:40.7]} 21. fxe3
{[%clk 0:00:28.8]} 21... Rad8 {[%clk 0:00:40]} 22. d4 {[%clk 0:00:27.5]} 22...
Rfe8 {[%clk 0:00:35]} 23. Nc3 {[%clk 0:00:25.9]} 23... Qa5 {[%clk 0:00:28.5]}
24. Rad1 {[%clk 0:00:23.6]} 24... c5 {[%clk 0:00:23.9]} 25. d5 {[%clk
0:00:21.3]} 25... b5 {[%clk 0:00:23.8]} 26. d6 {[%clk 0:00:14.7]} 26... b4
{[%clk 0:00:19.1]} 27. Nd5 {[%clk 0:00:14.8]} 27... Qxa2 {[%clk 0:00:19.6]} 28.
Nc7 {[%clk 0:00:14.4]} 28... Re4 {[%clk 0:00:15.6]} 29. Qe2 {[%clk 0:00:11.9]}
29... Qxb2 {[%clk 0:00:11.9]} 30. Bxe4 {[%clk 0:00:04.4]} 30... Qxe2 {[%clk
0:00:11.4]} 31. Rxe2 {[%clk 0:00:05.3]} 31... Bxe4 {[%clk 0:00:12.1]} 32. Nb5
{[%clk 0:00:05.5]} 32... Rd7 {[%clk 0:00:10.2]} 33. Nxa7 {[%clk 0:00:04.5]}
33... Bf3 {[%clk 0:00:10]} 34. Red2 {[%clk 0:00:03.7]} 34... Bxd1 {[%clk
0:00:10]} 35. Rxd1 {[%clk 0:00:04.6]} 35... Rxa7 {[%clk 0:00:08.4]} 36. d7
{[%clk 0:00:04.3]} 36... Bf6 {[%clk 0:00:08.8]} 37. d8=Q {[%clk 0:00:04.5]}
37... Bxd8 {[%clk 0:00:09.2]} 38. Rxd8 {[%clk 0:00:05.4]} 38... Rb7 {[%clk
0:00:08]} 39. Kg2 {[%clk 0:00:02]} 39... b3 {[%clk 0:00:08.4]} 40. Kf3 {[%clk
0:00:01.9]} 40... h5 {[%clk 0:00:09.1]} 41. Rd1 {[%clk 0:00:01.7]} 41... c4
{[%clk 0:00:09]} 42. Rb1 {[%clk 0:00:02.6]} 42... c3 {[%clk 0:00:09.4]} 43. e4
{[%clk 0:00:01.9]} 43... c2 {[%clk 0:00:08.9]} 44. Rb2 {[%clk 0:00:02.4]} 44...
Ne5+ {[%clk 0:00:07.9]} 0-1

[Event "*** Titled Tuesday Blitz"]
[Site "Chess.com"]
[Date "2021.03.16"]
[Round "4"]
[White "ChristopherYoo"]
[Black "NicoChasin"]
[Result "1-0"]
[WhiteElo "2900"]
[BlackElo "2604"]
[TimeControl "180+1"]
[EndTime "10:39:00 PDT"]
[Termination "ChristopherYoo won by resignation"]

1. c4 {[%clk 0:03:00.9]} 1... e5 {[%clk 0:02:59]} 2. g3 {[%clk 0:02:59.3]} 2...
Nf6 {[%clk 0:02:58.5]} 3. Bg2 {[%clk 0:02:59.4]} 3... Bc5 {[%clk 0:02:56.9]} 4.
Nc3 {[%clk 0:02:58.7]} 4... c6 {[%clk 0:02:56.7]} 5. e3 {[%clk 0:02:44.7]} 5...
O-O {[%clk 0:02:56]} 6. Nge2 {[%clk 0:02:43.8]} 6... d6 {[%clk 0:02:50.9]} 7.
O-O {[%clk 0:02:43.1]} 7... Bf5 {[%clk 0:02:39.2]} 8. d4 {[%clk 0:02:41.7]} 8...
exd4 {[%clk 0:02:32.8]} 9. Nxd4 {[%clk 0:02:39.9]} 9... Bg6 {[%clk 0:02:32.9]}
10. b3 {[%clk 0:02:39.3]} 10... Nbd7 {[%clk 0:02:32.7]} 11. Nce2 {[%clk
0:02:28.1]} 11... Re8 {[%clk 0:02:29.5]} 12. Bb2 {[%clk 0:02:27.5]} 12... a5
{[%clk 0:02:28.5]} 13. a3 {[%clk 0:02:24.4]} 13... Be4 {[%clk 0:02:26.7]} 14.
Bxe4 {[%clk 0:02:22.3]} 14... Rxe4 {[%clk 0:02:26.3]} 15. Nc3 {[%clk 0:02:19.8]}
15... Re8 {[%clk 0:02:25.6]} 16. Nf3 {[%clk 0:01:51.1]} 16... Qe7 {[%clk
0:02:23]} 17. Qc2 {[%clk 0:01:48.8]} 17... h6 {[%clk 0:02:21.1]} 18. Nd4 {[%clk
0:01:41.9]} 18... Ne5 {[%clk 0:02:20.7]} 19. Rfd1 {[%clk 0:01:38]} 19... Rad8
{[%clk 0:02:18.3]} 20. Ne4 {[%clk 0:01:07.5]} 20... Nxe4 {[%clk 0:02:11.1]} 21.
Qxe4 {[%clk 0:01:07.3]} 21... a4 {[%clk 0:02:11.6]} 22. Nf5 {[%clk 0:00:57.5]}
22... Qe6 {[%clk 0:02:07.9]} 23. b4 {[%clk 0:00:47.1]} 23... Nxc4 {[%clk
0:01:55.9]} 24. Qxe6 {[%clk 0:00:42.3]} 24... fxe6 {[%clk 0:01:55.6]} 25. Nxg7
{[%clk 0:00:40.7]} 25... Nxb2 {[%clk 0:01:55.4]} 26. Nxe8 {[%clk 0:00:37.2]}
26... Nxd1 {[%clk 0:01:46.7]} 27. Nf6+ {[%clk 0:00:34.9]} 27... Kf7 {[%clk
0:01:43.8]} 28. Ne4 {[%clk 0:00:34.5]} 28... Nxf2 {[%clk 0:01:21.9]} 29. Kxf2
{[%clk 0:00:29.4]} 29... Ba7 {[%clk 0:01:21.6]} 30. Ke2 {[%clk 0:00:29.8]} 30...
d5 {[%clk 0:01:21.2]} 31. Nd2 {[%clk 0:00:29.7]} 31... e5 {[%clk 0:01:20.6]} 32.
Nf3 {[%clk 0:00:26.8]} 32... Ke6 {[%clk 0:01:20.4]} 33. g4 {[%clk 0:00:22.1]}
33... Rf8 {[%clk 0:01:19]} 34. Nh4 {[%clk 0:00:21.8]} 34... Rg8 {[%clk
0:01:15.2]} 35. h3 {[%clk 0:00:21.8]} 35... Rg5 {[%clk 0:01:13.9]} 36. Rf1
{[%clk 0:00:19.1]} 36... h5 {[%clk 0:01:13.6]} 37. Nf3 {[%clk 0:00:17.8]} 37...
Rg8 {[%clk 0:01:08.6]} 38. gxh5 {[%clk 0:00:17.9]} 38... Rg2+ {[%clk 0:01:08.1]}
39. Rf2 {[%clk 0:00:15.3]} 39... Rg3 {[%clk 0:01:07.9]} 40. h4 {[%clk
0:00:14.9]} 40... e4 {[%clk 0:01:06.9]} 41. Ng5+ {[%clk 0:00:14.8]} 41... Ke5
{[%clk 0:01:05.2]} 42. h6 {[%clk 0:00:14.6]} 42... Rxe3+ {[%clk 0:01:05]} 43.
Kf1 {[%clk 0:00:14.8]} 43... Bd4 {[%clk 0:00:50.9]} 44. Rd2 {[%clk 0:00:11.5]}
44... Bc3 {[%clk 0:00:44.7]} 45. Rc2 {[%clk 0:00:11.3]} 45... Bd4 {[%clk
0:00:43.5]} 46. Rd2 {[%clk 0:00:11.2]} 46... Rd3 {[%clk 0:00:36]} 47. Rxd3
{[%clk 0:00:09.4]} 47... exd3 {[%clk 0:00:36.1]} 48. Nf3+ {[%clk 0:00:10]} 48...
Kf4 {[%clk 0:00:26.8]} 49. Nxd4 {[%clk 0:00:10.9]} 49... Ke3 {[%clk 0:00:27.7]}
50. Ke1 {[%clk 0:00:08.3]} 50... Kxd4 {[%clk 0:00:20.5]} 51. h7 {[%clk
0:00:08.4]} 51... Kc3 {[%clk 0:00:21.4]} 52. h8=Q+ {[%clk 0:00:08]} 52... Kc2
{[%clk 0:00:22]} 53. Qd4 {[%clk 0:00:08.3]} 53... b6 {[%clk 0:00:20.9]} 54. Qf2+
{[%clk 0:00:07.5]} 54... Kc3 {[%clk 0:00:20.3]} 55. Qd2+ {[%clk 0:00:07.5]}
55... Kc4 {[%clk 0:00:20.5]} 56. h5 {[%clk 0:00:07.5]} 56... c5 {[%clk 0:00:21]}
57. bxc5 {[%clk 0:00:08]} 57... bxc5 {[%clk 0:00:21.9]} 58. h6 {[%clk
0:00:08.5]} 58... d4 {[%clk 0:00:22.1]} 59. h7 {[%clk 0:00:09.4]} 59... Kb3
{[%clk 0:00:22.9]} 60. h8=Q {[%clk 0:00:10.3]} 60... c4 {[%clk 0:00:23.8]} 61.
Qxd4 {[%clk 0:00:09.9]} 1-0

[Event "*** Titled Tuesday Blitz"]
[Site "Chess.com"]
[Date "2021.03.16"]
[Round "4"]
[White "sokidze"]
[Black "Problematique_99"]
[Result "1/2-1/2"]
[WhiteElo "2699"]
[BlackElo "2479"]
[TimeControl "180+1"]
[EndTime "10:39:01 PDT"]
[Termination "Game drawn by repetition"]

1. e4 {[%clk 0:03:00.9]} 1... c5 {[%clk 0:02:58.7]} 2. Nf3 {[%clk 0:03:01.1]}
2... Nc6 {[%clk 0:02:58.1]} 3. d4 {[%clk 0:03:01.5]} 3... cxd4 {[%clk 0:02:59]}
4. Nxd4 {[%clk 0:03:01]} 4... g6 {[%clk 0:02:59.4]} 5. Nc3 {[%clk 0:03:01.1]}
5... Bg7 {[%clk 0:02:59.7]} 6. Be3 {[%clk 0:03:01.4]} 6... Nf6 {[%clk
0:02:59.9]} 7. Bc4 {[%clk 0:03:01.9]} 7... Qa5 {[%clk 0:02:52.6]} 8. f3 {[%clk
0:02:50]} 8... Qb4 {[%clk 0:02:28.8]} 9. Nb5 {[%clk 0:02:46]} 9... O-O {[%clk
0:02:00.8]} 10. Bb3 {[%clk 0:02:21.4]} 10... Qa5 {[%clk 0:01:50.1]} 11. Qd2
{[%clk 0:02:16.2]} 11... a6 {[%clk 0:01:46.7]} 12. Nd4 {[%clk 0:02:14.6]} 12...
d6 {[%clk 0:01:44.7]} 13. O-O-O {[%clk 0:02:12.7]} 13... Nxd4 {[%clk 0:01:42.1]}
14. Bxd4 {[%clk 0:02:12.8]} 14... Be6 {[%clk 0:01:40.9]} 15. Kb1 {[%clk
0:02:06]} 15... Rfc8 {[%clk 0:01:37.2]} 16. g4 {[%clk 0:02:00.6]} 16... b5
{[%clk 0:01:16.3]} 17. h4 {[%clk 0:01:53.2]} 17... b4 {[%clk 0:01:16.3]} 18. Nd5
{[%clk 0:01:52.7]} 18... Bxd5 {[%clk 0:01:11.8]} 19. exd5 {[%clk 0:01:47.9]}
19... Qb5 {[%clk 0:01:00.2]} 20. Qd3 {[%clk 0:01:39.7]} 20... Qxd3 {[%clk
0:00:58.2]} 21. Rxd3 {[%clk 0:01:40.6]} 21... Nd7 {[%clk 0:00:55.4]} 22. Bxg7
{[%clk 0:01:12.2]} 22... Kxg7 {[%clk 0:00:55]} 23. Re1 {[%clk 0:01:12.8]} 23...
a5 {[%clk 0:00:34.2]} 24. Rxe7 {[%clk 0:00:53.2]} 24... Ne5 {[%clk 0:00:31.9]}
25. Rxe5 {[%clk 0:00:50.6]} 25... dxe5 {[%clk 0:00:31.8]} 26. Ba4 {[%clk
0:00:39.1]} 26... Rd8 {[%clk 0:00:27.7]} 27. c4 {[%clk 0:00:28.4]} 27... bxc3
{[%clk 0:00:25.1]} 28. bxc3 {[%clk 0:00:29.3]} 28... Rac8 {[%clk 0:00:23.7]} 29.
Kc2 {[%clk 0:00:29.4]} 29... f5 {[%clk 0:00:22.8]} 30. Bc6 {[%clk 0:00:22.6]}
30... Rd6 {[%clk 0:00:20.1]} 31. c4 {[%clk 0:00:20.4]} 31... Kf6 {[%clk
0:00:17.1]} 32. g5+ {[%clk 0:00:17.7]} 32... Ke7 {[%clk 0:00:16.8]} 33. Kc3
{[%clk 0:00:17.4]} 33... Rcxc6 {[%clk 0:00:12.5]} 34. dxc6 {[%clk 0:00:16.1]}
34... Rxd3+ {[%clk 0:00:11]} 35. Kxd3 {[%clk 0:00:16]} 35... Kd6 {[%clk
0:00:11.6]} 36. c5+ {[%clk 0:00:05.3]} 36... Kxc6 {[%clk 0:00:10.7]} 37. Kc4
{[%clk 0:00:05.8]} 37... e4 {[%clk 0:00:08.3]} 38. fxe4 {[%clk 0:00:04]} 38...
fxe4 {[%clk 0:00:09.2]} 39. Kd4 {[%clk 0:00:02.6]} 39... a4 {[%clk 0:00:04.5]}
40. Kxe4 {[%clk 0:00:01.3]} 40... Kxc5 {[%clk 0:00:05.4]} 41. Kd3 {[%clk
0:00:02.2]} 41... Kb4 {[%clk 0:00:05.7]} 42. Kc2 {[%clk 0:00:02.9]} 42... Kc4
{[%clk 0:00:04.4]} 43. Kb2 {[%clk 0:00:03.3]} 43... Kb4 {[%clk 0:00:04.8]} 44.
Kc2 {[%clk 0:00:02.8]} 44... Kc4 {[%clk 0:00:05.1]} 45. Kb2 {[%clk 0:00:03.4]}
45... Kb4 {[%clk 0:00:05.3]} 46. Kc2 {[%clk 0:00:04]} 1/2-1/2